bitfinex-derivatives/quotes_SOLF0:USTF0_20250823
["timestamp","ask_amount","ask_price","bid_price","bid_amount"]
[1755947660357,124.45,202.85,202.81,0.41]
[1755947660665,124.45,202.85,202.82,7.1361333]
[1755947660859,121.6,202.85,202.83,7.1361333]
[1755947661060,24.6472,202.93,202.74,24.6702]
[1755947661061,2.85,202.88,202.85,0.41]
[1755947661367,124.45,202.88,202.86,7.13607952]
[1755947661567,124.45,202.88,202.87,5.17155043]
[1755947662664,2.85,202.88,202.87,5.17155043]
[1755947664259,121.6,202.89,202.87,5.17155043]
[1755947664466,2.85,202.99,202.88,5.17155043]
[1755947664663,2.85,202.97,202.89,5.17155043]
[1755947664973,2.85,202.97,202.9,5.17155043]
[1755947665263,2.85,202.97,202.86,0.41]
[1755947665468,2.85,202.97,202.87,7.12401396]
[1755947665669,146.2412,202.98,202.88,7.12401396]
[1755947665670,2.85,202.92,202.88,7.12401396]
[1755947665872,25.4942653,203.02,202.9,0.41]
[1755947666059,4.9295,202.93,202.86,0.41]
[1755947666369,7.7795,202.93,202.87,7.12337935]
[1755947666569,7.7795,202.93,202.88,7.12337935]
[1755947666766,4.9298,202.92,202.89,5.16221039]
[1755947666969,4.9298,202.92,202.9,5.16221039]
[1755947667166,4.93,202.91,202.88,0.41]
[1755947667470,4.93,202.91,202.89,5.15995365]
[1755947667669,4.93,202.91,202.9,5.15995365]
[1755947667970,7.78,202.91,202.84,0.41]
[1755947668165,7.78,202.91,202.85,7.12065377]
[1755947668472,7.78,202.91,202.86,2.37043362]
[1755947668660,7.78,202.91,202.87,7.53011133]
[1755947668866,7.78,202.91,202.88,5.15967771]
[1755947669061,7.78,202.91,202.89,5.15967771]
[1755947669261,7.78,202.91,202.87,0.41]
[1755947669467,7.78,202.91,202.88,5.15933168]
[1755947669667,4.9295,202.93,202.89,5.56933168]
[1755947669866,126.7495,202.93,202.9,5.15933168]
[1755947670067,126.7495,202.93,202.89,0.41]
[1755947670266,126.7495,202.93,202.9,5.15902634]
[1755947670466,126.7495,202.93,202.89,0.41]
[1755947670666,126.7495,202.93,202.9,5.15851971]
[1755947670865,126.7495,202.93,202.89,0.41]
[1755947671062,129.5995,202.93,202.9,5.15851971]
[1755947671262,129.5995,202.93,202.89,0.41]
[1755947671472,129.5995,202.93,202.9,5.15823506]
[1755947671670,129.5995,202.93,202.89,0.41]
[1755947671872,129.5995,202.93,202.9,5.15823506]
[1755947672174,129.5995,202.93,202.89,0.41]
[1755947672476,7.7795,202.93,202.9,5.15816953]
[1755947672772,129.5195,202.93,202.89,0.41]
[1755947672968,129.5195,202.93,202.9,5.15816953]
[1755947673169,129.5195,202.93,202.89,0.41]
[1755947673373,129.5195,202.93,202.9,5.15832067]
[1755947673568,124.55,202.93,202.91,5.15832067]
[1755947673769,124.55,202.93,202.89,0.41]
[1755947673968,124.55,202.93,202.9,5.15832067]
[1755947674169,124.55,202.93,202.91,5.15832067]
[1755947674362,124.55,202.93,202.89,0.41]
[1755947674568,124.55,202.93,202.9,5.15869075]
[1755947674874,124.55,202.93,202.91,5.15869075]
[1755947675071,129.3895,202.93,202.86,4.931]
[1755947675573,129.3895,202.93,202.87,5.15928552]
[1755947675769,129.3895,202.93,202.88,7.51933967]
[1755947675972,7.6895,202.93,202.89,5.55928552]
[1755947676172,129.3495,202.93,202.9,5.15928552]
[1755947676472,2.76,202.92,202.91,5.15928552]
[1755947677974,2.76,202.92,202.91,5.16055409]
[1755947679974,2.76,203.0,202.92,0.4]
[1755947680273,2.76,202.97,202.93,5.16055409]
[1755947680474,2.76,202.98,202.94,5.16270527]
[1755947680669,2.76,202.98,202.89,0.4]
[1755947680872,2.76,202.98,202.9,7.13355216]
[1755947681072,2.76,202.98,202.89,0.4]
[1755947681073,2.76,202.98,202.91,7.13355216]
[1755947681274,2.76,202.98,202.92,7.13355216]
[1755947681471,2.76,202.97,202.93,5.16270527]
[1755947681679,2.76,202.96,202.94,5.16270527]
[1755947681875,4.9285,202.97,202.95,5.16270527]
[1755947682182,7.6885,202.97,202.94,0.4]
[1755947682379,7.6885,202.97,202.95,5.16415228]
[1755947682581,7.6885,202.97,202.94,0.4]
[1755947682782,4.9285,202.97,202.95,5.16415228]
[1755947682980,2.76,202.95,202.91,0.4]
[1755947683180,121.84,202.94,202.92,5.16455228]
[1755947683485,121.84,202.94,202.93,5.16455228]
[1755947684183,121.84,202.94,202.93,5.16500911]
[1755947685083,121.84,202.94,202.93,5.56500911]
[1755947685383,124.54,202.97,202.94,0.4]
[1755947685575,124.54,202.97,202.95,5.16500911]
[1755947685880,124.54,202.97,202.96,5.16500911]
[1755947686279,124.54,202.97,202.94,4.39905868]
[1755947686581,124.54,202.97,202.95,5.11934736]
[1755947686881,124.54,202.97,202.96,5.12022915]
[1755947688180,129.4686,202.97,202.91,5.3297]
[1755947688375,2.76,202.96,202.92,7.09169563]
[1755947688576,2.76,202.96,202.93,7.49169563]
[1755947688876,2.76,202.96,202.94,5.12015629]
[1755947689078,2.76,202.96,202.95,5.12015629]
[1755947689584,2.76,202.96,202.93,0.4]
[1755947690281,2.76,202.96,202.91,4.9297]
[1755947690282,7.689,202.95,202.89,0.4]
[1755947690484,2.76,202.96,202.9,5.12244691]
[1755947690674,2.76,202.95,202.91,5.12244691]
[1755947690980,2.76,202.93,202.92,5.12244691]
[1755947691179,2.76,202.93,202.89,0.4]
[1755947691379,2.76,202.93,202.9,5.12323959]
[1755947691581,2.76,202.93,202.91,5.12323959]
[1755947691883,2.76,202.93,202.92,5.12323959]
[1755947692185,2.76,202.93,202.89,0.4]
[1755947692372,2.76,202.93,202.9,5.12326546]
[1755947692575,2.76,202.93,202.91,5.12326546]
[1755947692782,2.76,202.93,202.92,5.12326546]
[1755947693186,2.76,202.93,202.89,0.4]
[1755947693384,2.76,202.93,202.9,0.4]
[1755947693589,2.76,202.93,202.91,5.12520145]
[1755947693784,2.76,202.93,202.9,0.4]
[1755947693980,4.9291,202.95,202.91,5.12520145]
[1755947694180,4.9291,202.95,202.89,0.4]
[1755947694385,2.76,202.94,202.91,0.4]
[1755947694686,2.76,202.94,202.92,5.12643915]
[1755947694984,2.76,202.94,202.9,0.4]
[1755947695184,2.76,202.94,202.91,5.52632955]
[1755947695383,2.76,202.94,202.92,5.12632955]
[1755947695578,2.76,202.94,202.91,0.4]
[1755947695780,2.76,202.94,202.92,5.12699571]
[1755947696081,2.76,203.02,202.93,5.52677227]
[1755947696285,121.56,203.01,202.94,7.10083331]
[1755947696487,121.56,203.0,202.89,0.4]
[1755947696682,7.6886,202.97,202.9,7.10075689]
[1755947696881,7.6886,202.97,202.91,7.10075689]
[1755947697180,2.76,202.96,202.92,7.10075689]
[1755947697382,2.76,202.95,202.93,7.10075689]
[1755947697580,2.76,202.95,202.94,7.10075689]
[1755947698285,9.8531,203.05,202.94,7.10075689]
[1755947698286,121.9,203.04,202.95,0.4]
[1755947698486,2.76,203.03,202.96,7.10075689]
[1755947698686,2.76,203.03,202.97,7.10075689]
[1755947698886,2.76,203.02,202.98,5.1267043]
[1755947699086,2.76,203.01,202.99,5.1267043]
[1755947699289,2.76,203.01,202.95,0.4]
[1755947699490,2.76,203.01,202.97,0.4]
[1755947699789,9.8507,203.1,202.96,11.44289648]
[1755947699790,2.76,203.12,202.99,0.4]
[1755947699986,4.9269,203.04,203.0,7.09963678]
[1755947700295,2.76,203.02,203.01,5.12595739]
[1755947701689,2.76,203.02,202.95,0.4]
[1755947701884,122.16,203.04,202.96,11.44375775]
[1755947702186,122.12,203.05,202.99,0.4]
[1755947702391,122.18,203.05,203.0,7.0972019]
[1755947702687,122.18,203.05,203.02,0.4]
[1755947702892,122.18,203.05,203.03,5.12425532]
[1755947703092,122.18,203.05,203.04,5.12425532]
[1755947705593,124.84,203.05,203.04,5.12425532]
[1755947706089,2.66,203.05,203.04,5.12425532]
[1755947706295,124.74,203.05,203.04,5.12425532]
[1755947708288,124.74,203.05,202.99,0.41]
[1755947708494,2.66,203.04,203.0,7.50001015]
[1755947708693,2.66,203.04,203.01,7.09001015]
[1755947708896,2.66,203.04,203.02,5.11904242]
[1755947709096,2.66,203.04,203.03,5.11904242]
[1755947710000,124.62,203.04,203.03,5.11904242]
[1755947710593,124.6,203.04,203.03,5.11904242]
[1755947710801,2.66,203.04,203.03,5.11904242]
[1755947711197,2.66,203.04,203.03,5.11730698]
[1755947711802,24.6225,203.14,203.03,5.11730698]
[1755947711803,2.66,203.07,203.03,5.11730698]
[1755947712004,121.9,203.06,203.04,5.11605164]
[1755947712202,121.88,203.08,203.0,6.24935445]
[1755947712403,121.88,203.08,203.01,7.50193902]
[1755947712610,121.88,203.08,203.02,7.09193902]
[1755947712901,121.88,203.08,203.0,6.24935445]
[1755947712902,121.92,203.08,203.04,0.41]
[1755947713108,121.92,203.08,203.05,7.50193902]
[1755947713312,121.92,203.08,203.06,5.11498374]
[1755947713507,7.5854,203.1,203.07,5.11498374]
[1755947713708,121.9,203.09,203.05,0.41]
[1755947713899,124.56,203.09,203.06,5.11347932]
[1755947714102,124.56,203.09,203.05,0.41]
[1755947714103,2.66,203.08,203.01,0.41]
[1755947714306,2.66,203.08,203.02,7.08918092]
[1755947714508,121.9,203.09,203.03,7.08918092]
[1755947714707,121.9,203.09,203.04,7.0891501]
[1755947714908,121.9,203.09,203.05,5.11299391]
[1755947715105,121.9,203.09,203.06,5.11299391]
[1755947715313,2.66,203.08,203.01,0.41]
[1755947715510,2.66,203.08,203.02,7.08558991]
[1755947715809,2.66,203.05,203.03,7.08558991]
[1755947716008,4.9263,203.06,203.04,5.10966373]
[1755947716203,4.9263,203.06,203.05,5.10966373]
[1755947716713,7.5863,203.06,203.05,5.10966373]
[1755947717113,2.66,203.24,203.06,0.41]
[1755947717414,2.66,203.22,203.08,6.24935445]
[1755947717710,4.9238,203.17,203.09,7.08529629]
[1755947717911,2.66,203.16,203.1,5.10966373]
[1755947718213,123.88,203.17,203.11,5.10966373]
[1755947718410,2.66,203.13,203.06,0.41]
[1755947718608,2.66,203.13,203.07,11.46637403]
[1755947718814,2.66,203.13,203.09,0.41]
[1755947719012,2.66,203.13,203.1,5.1027183]
[1755947719211,4.9242,203.15,203.11,5.1027183]
[1755947719416,4.9242,203.15,203.09,0.41]
[1755947719620,7.5842,203.15,203.1,5.10107811]
[1755947719819,7.5842,203.15,203.11,5.10107811]
[1755947720117,7.5842,203.15,203.09,0.41]
[1755947720515,2.66,203.13,203.1,5.09974895]
[1755947720710,2.66,203.13,203.06,0.41]
[1755947720919,2.66,203.13,203.07,5.09982576]
[1755947721120,2.66,203.13,203.08,7.48185194]
[1755947721320,2.66,203.13,203.09,5.09982576]
[1755947721614,2.66,203.13,203.1,5.09982576]
[1755947721814,4.9245,203.14,203.11,5.09895339]
[1755947722023,7.5847,203.13,203.09,6.24935445]
[1755947722217,2.66,203.15,203.1,5.09906954]
[1755947722414,2.66,203.15,203.06,6.24935445]
[1755947722615,4.9249,203.12,203.07,5.09882513]
[1755947722814,4.9249,203.12,203.04,0.41]
[1755947722815,2.66,203.14,203.08,5.09882513]
[1755947723016,2.66,203.14,203.04,6.65935445]
[1755947723217,24.6229,203.13,203.05,5.09922008]
[1755947723416,2.66,203.12,203.06,5.09922008]
[1755947723716,2.66,203.12,203.0,6.65935445]
[1755947723917,2.66,203.12,203.01,11.4596667]
[1755947724122,2.66,203.12,203.04,6.24935445]
[1755947724322,2.66,203.12,203.05,5.09969584]
[1755947724520,2.66,203.12,203.06,5.09969584]
[1755947724717,2.66,203.11,203.07,5.09969584]
[1755947724913,2.66,203.1,203.04,6.24935445]
[1755947725118,2.66,203.15,203.05,5.5003073]
[1755947725319,2.66,203.15,203.06,5.1003073]
[1755947725624,4.9246,203.13,203.07,5.1003073]
[1755947725817,2.66,203.15,203.05,0.4]
[1755947726016,2.66,203.15,203.06,5.10066335]
[1755947726217,2.66,203.15,203.07,5.10066335]
[1755947726514,2.66,203.15,203.05,0.4]
[1755947726718,4.925,203.12,203.06,5.10090137]
[1755947726915,7.585,203.12,203.07,5.50090137]
[1755947727227,7.585,203.12,203.07,0.4]
[1755947728930,4.925,203.12,203.07,0.4]
[1755947729129,2.66,203.11,203.07,0.4]
[1755947729720,4.9253,203.1,203.08,5.10267635]
[1755947729925,7.5853,203.1,203.07,0.4]
[1755947730129,7.5853,203.1,203.08,5.10267258]
[1755947730327,7.5853,203.1,203.07,0.4]
[1755947730527,7.5853,203.1,203.08,5.10324825]
[1755947730726,7.5853,203.1,203.07,0.4]
[1755947730925,7.5853,203.1,203.08,5.1032473]
[1755947731126,7.5853,203.1,203.07,0.4]
[1755947731329,7.5853,203.1,203.08,5.1034095]
[1755947731532,7.5853,203.1,203.07,0.4]
[1755947731733,7.5853,203.1,203.08,5.10383166]
[1755947731931,7.5853,203.1,203.07,0.4]
[1755947732130,7.5853,203.1,203.08,5.10383072]
[1755947732436,7.5853,203.1,203.07,0.4]
[1755947732729,7.5853,203.1,203.02,6.24935445]
[1755947732930,2.66,203.08,203.04,0.4]
[1755947733126,24.6232,203.13,203.05,5.10453868]
[1755947733328,2.66,203.07,202.99,0.4]
[1755947733532,2.64,203.05,203.01,0.4]
[1755947733728,2.64,203.04,203.02,5.10616102]
[1755947733939,2.64,203.04,203.03,5.10616102]
[1755947734636,7.5656,203.09,203.03,7.08120226]
[1755947734823,2.64,203.08,203.04,7.08120226]
[1755947735027,2.64,203.08,203.05,7.08120226]
[1755947735325,2.64,203.07,203.06,5.10616102]
[1755947739030,7.5662,203.07,203.06,5.11552148]
[1755947744737,7.5662,203.07,203.06,7.09806657]
[1755947745131,7.5662,203.07,203.06,7.09800474]
[1755947747332,7.5662,203.07,203.06,5.11552148]
[1755947748344,4.9264,203.06,203.03,0.4]
[1755947748542,4.9264,203.06,203.04,11.50587881]
[1755947748742,4.9264,203.06,203.05,7.09003825]
[1755947748946,4.9264,203.06,203.05,7.0897738]
[1755947749139,4.9264,203.06,203.05,7.08965016]
[1755947755050,4.9264,203.06,203.05,11.44112031]
[1755947755945,4.9243,203.14,203.06,4.9262]
[1755947756143,2.64,203.15,203.07,11.84092867]
[1755947756342,2.64,203.15,203.08,11.44092867]
[1755947756548,2.64,203.15,203.09,7.08965016]
[1755947756753,2.64,203.14,203.1,7.08965016]
[1755947757047,2.64,203.13,203.11,7.08965016]
[1755947757248,2.64,203.13,203.12,7.08965016]
[1755947757449,2.64,203.13,203.12,7.09295871]
[1755947758048,2.64,203.13,203.12,1.98412818]
[1755947758251,2.64,203.13,203.12,7.09295871]
[1755947758453,7.5648,203.13,203.12,3.053e-05]
[1755947758750,2.64,203.13,203.04,0.4]
[1755947758940,2.64,203.13,203.05,6.33599284]
[1755947759146,2.64,203.13,203.04,0.4]
[1755947759147,2.64,203.13,203.06,6.33599284]
[1755947759342,2.64,203.13,203.07,1.98435286]
[1755947759550,4.9253,203.1,203.08,1.98435286]
[1755947759744,2.64,203.09,203.05,0.4]
[1755947759942,2.64,203.09,203.06,2.38431754]
[1755947760250,2.64,203.09,203.07,1.98431754]
[1755947760452,2.64,203.09,203.08,1.98431754]
[1755947762445,4.9258,203.08,203.03,0.4]
[1755947762648,2.64,203.07,203.04,1.98515119]
[1755947762850,2.64,203.07,203.05,2.38515119]
[1755947763051,24.622,203.14,203.06,2.38515119]
[1755947763250,2.64,203.09,203.07,1.98515119]
[1755947763452,2.64,203.09,203.06,0.4]
[1755947763652,2.64,203.09,203.07,1.985409]
[1755947763847,2.64,203.09,203.06,0.4]
[1755947764151,2.64,203.09,203.07,1.985409]
[1755947764351,2.64,203.09,203.06,0.4]
[1755947764554,2.64,203.09,203.07,1.98575925]
[1755947764754,2.64,203.09,203.06,0.4]
[1755947764955,2.64,203.09,203.07,1.98575925]
[1755947765249,2.6,203.08,203.06,0.4]
[1755947765454,2.6,203.08,203.07,1.98616868]
[1755947765857,2.6,203.08,203.02,0.4]
[1755947766054,2.6,203.08,203.03,6.34158144]
[1755947766258,2.6,203.08,203.05,0.4]
[1755947766458,2.6,203.08,203.06,1.98610675]
[1755947766756,2.6,203.08,203.07,1.98610675]
[1755947769157,2.6,203.08,203.07,1.98676452]
[1755947770158,4.9256,203.09,203.07,1.98676452]
[1755947770351,7.5256,203.09,203.08,1.98676452]
[1755947770551,7.5256,203.09,203.08,6.99994716]
[1755947772658,7.5256,203.09,203.08,6.9974731]
[1755947773354,7.5256,203.09,203.08,1.98429046]
[1755947773563,7.5256,203.09,203.05,0.4]
[1755947773860,7.5256,203.09,203.06,4.35726644]
[1755947774061,7.5256,203.09,203.07,6.99768805]
[1755947774254,7.5256,203.09,203.08,6.99768805]
[1755947774861,2.6,203.13,203.08,6.99768805]
[1755947775055,2.6,203.11,203.09,6.99768805]
[1755947775263,2.6,203.11,203.1,6.99768805]
[1755947775559,2.6,203.11,203.1,5.01339297]
[1755947776452,4.9256,203.09,203.0,4.15849672]
[1755947776662,7.5256,203.09,203.06,0.4]
[1755947776858,7.5256,203.09,203.07,6.97376988]
[1755947777064,7.5256,203.09,203.08,6.97377042]
[1755947779664,7.5256,203.09,203.08,4.9893023]
[1755947780457,4.9264,203.06,202.98,4.9281]
[1755947780657,7.5264,203.06,202.99,11.3335618]
[1755947780859,4.9264,203.06,203.01,0.4]
[1755947781065,4.9264,203.06,203.02,11.3335618]
[1755947781265,4.9264,203.06,203.05,0.4]
[1755947781471,4.9264,203.06,203.05,7.37498986]
[1755947785772,4.9264,203.06,203.05,7.37478215]
[1755947785978,4.9264,203.06,203.05,6.97429489]
[1755947786174,7.5264,203.06,203.05,6.97429489]
[1755947786470,4.9264,203.06,203.05,6.97429489]
[1755947786778,4.9264,203.06,203.05,7.37429489]
[1755947788276,7.5264,203.06,203.05,9.489e-05]
[1755947788578,2.6,203.03,202.9,0.41]
[1755947788875,2.6,203.0,202.91,4.35912334]
[1755947789067,2.6,202.98,202.92,4.35912334]
[1755947789276,2.6,202.97,202.93,4.35912334]
[1755947789475,2.6,202.96,202.9,0.41]
[1755947789677,2.6,202.96,202.92,0.41]
[1755947789876,2.6,202.96,202.93,4.35382579]
[1755947790176,2.6,202.96,202.94,4.35382579]
[1755947790472,2.6,202.96,202.95,4.35382579]
[1755947790678,2.6,202.96,202.88,0.41]
[1755947790978,2.6,202.96,202.89,4.35034228]
[1755947791172,2.6,202.96,202.9,4.35034228]
[1755947791379,122.0,202.99,202.92,0.41]
[1755947791570,122.0,202.99,202.93,4.35034228]
[1755947791774,2.6,202.98,202.94,4.76034228]
[1755947792075,2.6,202.98,202.94,0.41]
[1755947792676,2.6,202.97,202.94,0.41]
[1755947794084,2.6,202.97,202.9,0.4]
[1755947794281,4.9278,203.0,202.92,0.4]
[1755947794481,4.9278,203.0,202.94,0.4]
[1755947794680,4.9278,203.0,202.95,4.34155572]
[1755947794983,7.4878,203.0,202.97,0.4]
[1755947795380,2.56,202.99,202.93,0.4]
[1755947795685,2.56,202.99,202.95,0.4]
[1755947798186,4.9278,203.0,202.91,4.9298]
[1755947798388,2.56,202.99,202.92,4.3367522]
[1755947798587,2.56,202.99,202.9,0.4]
[1755947798788,2.56,202.99,202.91,4.33669737]
[1755947798989,2.56,202.99,202.92,4.33669737]
[1755947799186,2.56,202.99,202.9,0.4]
[1755947799187,4.9289,202.96,202.9,0.4]
[1755947799388,2.56,202.95,202.91,4.33602567]
[1755947799592,2.56,202.95,202.89,0.4]
[1755947799788,2.56,202.94,202.9,4.73593719]
[1755947799986,2.56,202.94,202.87,11.18015445]
[1755947799987,2.56,202.94,202.91,0.4]
[1755947800384,2.56,202.94,202.92,6.65217992]
[1755947800585,2.56,202.94,202.93,1.92397384]
[1755947801391,2.56,202.94,202.93,1.92377375]
[1755947804593,2.56,202.94,202.93,1.92343046]
[1755947805093,2.56,202.94,202.91,0.4]
[1755947805292,2.56,202.94,202.92,6.62696881]
[1755947805491,4.9285,202.97,202.87,11.18015445]
[1755947805692,2.56,202.96,202.92,0.4]
[1755947805885,2.56,202.96,202.88,15.89052371]
[1755947805886,2.56,202.99,202.89,0.4]
[1755947806088,2.56,202.99,202.91,0.4]
[1755947806391,7.4881,202.99,202.93,0.4]
[1755947806591,2.56,202.98,202.94,1.92312037]
[1755947806792,2.56,202.99,202.91,0.4]
[1755947806994,2.56,202.99,202.92,6.62692946]
[1755947807194,2.56,202.99,202.93,1.923262]
[1755947807389,2.56,202.99,202.91,0.4]
[1755947807590,4.9289,202.96,202.92,1.92324971]
[1755947807784,2.56,202.95,202.93,1.92324971]
[1755947808093,2.56,202.95,202.86,0.4]
[1755947808291,2.56,202.95,202.88,0.4]
[1755947808494,2.56,202.95,202.89,10.95993375]
[1755947808688,7.4893,202.94,202.9,6.62672972]
[1755947808891,7.4893,202.94,202.91,7.02672972]
[1755947809085,7.4893,202.94,202.92,1.92321817]
[1755947809296,4.9288,202.96,202.87,6.24935445]
[1755947809598,4.9288,202.96,202.89,0.4]
[1755947809798,4.9288,202.96,202.91,0.4]
[1755947809993,7.4888,202.96,202.92,7.02619889]
[1755947810193,7.4888,202.96,202.93,1.92306411]
[1755947810391,7.4888,202.96,202.92,0.4]
[1755947810586,7.4888,202.96,202.93,1.9228885]
[1755947810795,7.4888,202.96,202.92,0.4]
[1755947810996,7.4888,202.96,202.93,1.9228885]
[1755947811197,2.56,202.95,202.92,0.4]
[1755947811393,2.56,202.95,202.93,1.92289495]
[1755947811590,2.56,202.94,202.88,4.9305]
[1755947811789,2.56,202.94,202.9,0.4]
[1755947811990,2.56,202.94,202.91,6.62565889]
[1755947812187,2.56,202.94,202.92,6.62565889]
[1755947812393,2.56,202.94,202.93,1.92289496]
[1755947812593,4.9296,202.93,202.87,0.4]
[1755947812795,2.56,202.92,202.88,10.9583049]
[1755947813097,2.56,202.95,202.89,6.62605796]
[1755947813398,2.56,202.95,202.9,6.62605796]
[1755947813697,2.56,202.93,202.91,1.92301885]
[1755947813894,2.56,202.93,202.87,0.4]
[1755947814096,122.02,202.96,202.88,10.95855693]
[1755947814296,2.56,202.92,202.89,6.62627977]
[1755947814495,2.56,202.92,202.9,6.62627977]
[1755947814695,2.56,202.92,202.91,1.92310367]
[1755947815095,4.929,202.95,202.91,1.92310367]
[1755947815295,4.929,202.95,202.92,1.92288817]
[1755947815495,4.929,202.95,202.88,0.4]
[1755947815691,4.929,202.95,202.89,10.95736594]
[1755947815898,4.929,202.95,202.91,0.4]
[1755947816192,4.929,202.95,202.92,6.62558439]
[1755947816397,2.56,202.94,202.93,1.92288766]
[1755947818396,4.929,202.95,202.93,1.92288766]
[1755947818600,7.4886,202.97,202.89,0.4]
[1755947818803,7.4886,202.97,202.9,10.95979065]
[1755947819096,7.4886,202.97,202.91,6.62685205]
[1755947819297,2.56,202.96,202.92,7.02685205]
[1755947819502,2.56,202.95,202.93,1.92324313]
[1755947819701,2.56,202.95,202.92,0.4]
[1755947819903,2.56,202.94,202.93,1.92352241]
[1755947820397,2.56,202.94,202.85,4.15849672]
[1755947820603,2.56,202.94,202.86,10.96417828]
[1755947820904,2.56,202.94,202.87,10.96417828]
[1755947821103,2.56,202.94,202.88,10.96417828]
[1755947821303,2.56,202.93,202.89,10.96417828]
[1755947821503,2.56,202.93,202.9,6.6296088]
[1755947821707,2.56,202.93,202.91,6.6296088]
[1755947821900,2.56,202.93,202.92,1.9240617]
[1755947822100,2.56,202.93,202.83,4.15849672]
[1755947822396,2.56,202.93,202.89,0.4]
[1755947822596,4.9293,202.94,202.9,4.70715242]
[1755947822796,2.56,202.92,202.91,6.63186452]
[1755947823709,4.9293,202.94,202.91,6.63186452]
[1755947823903,7.5293,202.94,202.92,6.63186452]
[1755947824097,2.6,202.93,202.89,0.4]
[1755947824296,2.6,202.93,202.9,10.97344305]
[1755947824501,2.6,202.93,202.91,6.63519008]
[1755947824705,2.6,202.93,202.92,6.63519008]
[1755947828408,2.6,202.93,202.85,0.4]
[1755947828603,2.6,202.93,202.86,6.27275485]
[1755947828812,2.6,202.93,202.87,6.27275485]
[1755947829006,2.6,202.94,202.88,1.92844828]
[1755947829211,2.6,202.94,202.85,0.4]
[1755947829212,2.6,202.94,202.9,0.4]
[1755947829413,2.6,202.94,202.91,6.27202699]
[1755947829618,2.6,202.94,202.92,1.92844828]
[1755947829911,7.5291,202.95,202.93,1.92844828]
[1755947830113,7.5291,202.95,202.94,1.92953496]
[1755947831510,2.6,202.95,202.94,1.9284047]
[1755947831716,2.6,203.03,202.94,1.9284047]
[1755947831911,2.6,202.98,202.95,2.3284047]
[1755947832113,2.6,202.97,202.96,1.9284047]
[1755947832513,2.6,202.97,202.91,0.4]
[1755947832717,2.6,202.94,202.92,6.28241304]
[1755947832924,2.6,202.94,202.93,1.92978771]
[1755947833217,2.6,202.94,202.93,6.28663754]
[1755947833613,121.88,202.94,202.85,4.15849672]
[1755947833915,121.88,202.94,202.83,0.4]
[1755947833916,2.6,202.93,202.83,4.55849672]
[1755947834116,4.9301,202.91,202.84,2.68]
[1755947834509,2.6,202.93,202.84,2.68]
[1755947834813,124.58,202.93,202.84,6.83849672]
[1755947835015,124.58,202.93,202.85,2.68]
[1755947835222,126.9096,202.93,202.85,6.83849672]
[1755947835419,126.9096,202.93,202.86,2.68]
[1755947835617,2.6,202.92,202.86,2.68]
[1755947836019,121.98,202.93,202.86,2.68]
[1755947836823,4.9301,202.91,202.86,2.68]
[1755947837023,4.9301,202.91,202.85,4.9313]
[1755947837324,4.9301,202.91,202.88,2.68]
[1755947837912,4.9303,202.9,202.88,2.68]
[1755947839724,7.5297,202.92,202.88,2.68]
[1755947840224,7.5297,202.92,202.89,2.68]
[1755947840428,7.5297,202.92,202.9,4.61757896]